bitfinex-derivatives/quotes_SOLF0:USTF0_20220101
["timestamp","ask_amount","ask_price","bid_price","bid_amount"]
[1641005834955,12.30534584,172.72,172.65,8.25]
[1641005835156,30.9549,172.73,172.66,1.21319025]
[1641005835157,43.26024584,172.73,172.66,1.21319025]
[1641005835755,70.92503584,172.73,172.66,1.21319025]
[1641005837158,70.92503584,172.73,172.65,1.21319025]
[1641005837755,12.30534584,172.72,172.65,1.21319025]
[1641005837957,12.30534584,172.72,172.65,28.87798025]
[1641005838456,12.30534584,172.72,172.66,1.21319025]
[1641005841858,12.30534584,172.71,172.65,27.66479]
[1641005842558,12.30534584,172.72,172.65,27.66479]
[1641005844060,70.92503584,172.73,172.66,1.2135783]
[1641005848368,8.78837694,172.69,172.63,12.30534584]
[1641005848569,3.0,172.67,172.63,12.30534584]
[1641005848769,3.0,172.67,172.52,4.0]
[1641005848968,3.0,172.65,172.54,49.35479576]
[1641005849168,3.0,172.64,172.54,49.35479576]
[1641005849370,3.0,172.64,172.61,1.21349267]
[1641005849972,27.66479,172.62,172.61,1.21349267]
[1641005850173,27.66479,172.62,172.61,1e-08]
[1641005850473,30.66479,172.62,172.54,5.97202775]
[1641005852176,30.66479,172.62,172.53,31.915]
[1641005857180,27.66479,172.62,172.53,31.915]
[1641005858382,30.66479,172.62,172.53,31.915]
[1641005858582,3.0,172.6,172.53,31.915]
[1641005858782,3.0,172.59,172.5,8.62]
[1641005858983,3.0,172.59,172.49,4.0]
[1641005859384,3.0,172.57,172.49,4.0]
[1641005859683,3.0,172.58,172.49,4.0]
[1641005860083,27.66479,172.55,172.49,4.0]
[1641005860687,32.5985,172.61,172.49,4.0]
[1641005860883,29.5985,172.61,172.5,3.0]
[1641005861085,3.0,172.6,172.49,10.551]
[1641005861285,32.5985,172.61,172.49,10.551]
[1641005861483,3.0,172.6,172.49,10.551]
[1641005861683,29.5985,172.61,172.49,10.551]
[1641005861885,3.0,172.6,172.49,10.551]
[1641005862089,13.47548129,172.6,172.49,10.551]
[1641005862287,27.66479,172.57,172.49,10.551]
[1641005865893,22.66172712,172.57,172.49,10.551]
[1641005866991,22.66172712,172.57,172.49,6.551]
[1641005867191,3.0,172.54,172.48,48.68965994]
[1641005867394,32.3169,172.56,172.47,30.3892]
[1641005867591,3.0,172.55,172.47,30.3892]
[1641005868191,27.66479,172.53,172.47,30.3892]
[1641005871897,27.66479,172.53,172.48,5.98172565]
[1641005872096,27.66479,172.53,172.48,11.67872565]
[1641005873299,27.66479,172.53,172.48,5.697]
[1641005876200,29.3169,172.56,172.48,5.697]
[1641005876401,22.66172712,172.57,172.48,33.36179]
[1641005877001,33.14123333,172.57,172.48,33.36179]
[1641005878100,33.14123333,172.57,172.51,4.11534243]
[1641005879403,12.34593674,172.55,172.51,4.11534243]
[1641005880204,12.34593674,172.55,172.52,4.11534243]
[1641005880704,12.34593674,172.55,172.52,10.24334243]
[1641005880904,15.34593674,172.56,172.52,10.24334243]
[1641005881106,12.34593674,172.56,172.52,10.24334243]
[1641005881706,22.66172712,172.57,172.52,6.128]
[1641005881907,25.66172712,172.57,172.52,6.128]
[1641005882706,3.0,172.53,172.5,4.11534243]
[1641005883107,3.0,172.54,172.5,4.11534243]
[1641005883709,3.0,172.53,172.49,4.11534243]
[1641005883909,3.0,172.54,172.49,4.11534243]
[1641005884710,27.66479,172.52,172.49,4.11534243]
[1641005887911,27.66479,172.52,172.48,4.11534243]
[1641005892919,35.00766386,172.57,172.48,4.11534243]
[1641005893119,12.34593674,172.57,172.49,3.0]
[1641005893319,4.1019829,172.53,172.51,4.0]
[1641005893521,4.1019829,172.53,172.49,4.764]
[1641005894125,4.1019829,172.58,172.52,1.21031114]
[1641005894924,4.1019829,172.58,172.53,4.10090016]
[1641005895125,4.1019829,172.58,172.53,10.10590016]
[1641005895725,31.7667729,172.59,172.54,5.3112113]
[1641005897729,27.66479,172.59,172.57,4.10090016]
[1641005898529,12.34593674,172.58,172.54,5.3112113]
[1641005898930,27.66479,172.56,172.54,5.3112113]
[1641005899128,27.66479,172.56,172.55,4.10090016]
[1641005903334,27.66479,172.56,172.54,4.10090016]
[1641005904834,27.66479,172.56,172.52,4.10090016]
[1641005909039,27.66479,172.59,172.52,4.10090016]
[1641005909239,12.34593674,172.6,172.55,7.0]
[1641005909440,12.34593674,172.6,172.55,27.66479]
[1641005910144,12.34593674,172.65,172.57,4.10090016]
[1641005910344,12.34593674,172.65,172.57,10.72690016]
[1641005910743,27.66479,172.66,172.58,4.10090016]
[1641005911344,43.10093674,172.67,172.6,27.66479]
[1641005911542,12.34593674,172.64,172.6,34.76569016]
[1641005912542,12.34593674,172.67,172.63,4.10090016]
[1641005912743,12.34593674,172.67,172.63,9.87790016]
[1641005914744,12.34593674,172.68,172.64,5.3112113]
[1641005917848,12.34593674,172.7,172.66,4.10090016]
[1641005918649,12.34593674,172.68,172.64,5.3112113]
[1641005919953,12.34593674,172.67,172.63,31.76569016]
[1641005920154,12.34593674,172.67,172.63,4.10090016]
[1641005920352,18.99493674,172.67,172.63,4.10090016]
[1641005920753,18.99493674,172.67,172.61,4.10090016]
[1641005920953,12.34593674,172.65,172.61,5.31545277]
[1641005922152,12.34593674,172.65,172.61,4.10090016]
[1641005922353,12.34593674,172.64,172.6,31.76569016]
[1641005924153,12.34593674,172.64,172.6,27.66479]
[1641005924354,12.34593674,172.63,172.6,27.66479]
[1641005925756,12.34593674,172.63,172.61,4.10090016]
[1641005925954,12.34593674,172.64,172.61,5.31540961]
[1641005926656,10.47291645,172.67,172.6,27.66479]
[1641005927456,12.34011166,172.64,172.6,31.77816055]
[1641005928058,12.34011166,172.64,172.6,27.66479]
[1641005928260,6.445,172.67,172.6,27.66479]
[1641005928859,6.445,172.67,172.6,21.08339161]
[1641005930261,4.08978184,172.64,172.6,21.08339161]
[1641005931862,4.08978184,172.64,172.57,29.3612]
[1641005933567,31.75457184,172.63,172.57,29.3612]
[1641005935069,27.66479,172.63,172.59,4.08974422]
[1641005935265,40.00490166,172.63,172.59,4.08974422]
[1641005937067,12.34011166,172.62,172.58,5.30423486]
[1641005938068,12.34011166,172.63,172.59,4.08974422]
[1641005938870,12.34011166,172.64,172.6,4.08974422]
[1641005940670,40.00490166,172.65,172.61,4.08974422]
[1641005946876,12.34011166,172.64,172.6,4.08974422]
[1641005948177,12.34011166,172.63,172.6,4.08974422]
[1641005950182,12.34011166,172.64,172.6,4.08974422]
[1641005952788,12.34011166,172.64,172.59,4.08974422]
[1641005953389,4.11118619,172.6,172.59,4.08974422]
[1641005953794,12.34011166,172.64,172.59,11.08974422]
[1641005953989,12.34011166,172.64,172.59,17.31374422]
[1641005954190,12.34011166,172.64,172.59,13.224]
[1641005954792,12.34011166,172.64,172.6,3.0]
[1641005954991,40.00490166,172.68,172.6,16.56042738]
[1641005955192,40.00490166,172.68,172.6,13.56042738]
[1641005955991,40.00490166,172.68,172.6,41.22521738]
[1641005956191,12.34011166,172.68,172.6,41.22521738]
[1641005957192,12.34011166,172.68,172.61,1.21449064]
[1641005958093,12.34011166,172.67,172.61,1.21449064]
[1641005958295,12.34011166,172.67,172.61,31.34119064]
[1641005959198,12.34011166,172.66,172.62,1.21449064]
[1641005959996,12.34011166,172.67,172.62,1.21449064]
[1641005965202,12.34011166,172.68,172.62,1.21449064]
[1641005965803,12.34011166,172.66,172.62,1.21449064]
[1641005966002,17.63011166,172.66,172.62,1.21449064]
[1641005971008,12.34011166,172.65,172.61,30.1267]
[1641005971810,12.34011166,172.65,172.6,27.66479]
[1641005971811,5.29,172.66,172.6,27.66479]
[1641005972008,12.34011166,172.67,172.6,27.66479]
[1641005972612,12.34011166,172.67,172.6,29.884]
[1641005972811,3.0,172.65,172.56,47.01072674]
[1641005973009,21.99311166,172.67,172.57,30.7862]
[1641005973611,12.34011166,172.66,172.57,30.7862]
[1641005974511,27.66479,172.62,172.57,30.7862]
[1641005974711,33.92179,172.62,172.57,30.7862]
[1641005978617,33.92179,172.62,172.58,1.21289723]
[1641005980520,33.92179,172.62,172.54,1.21289723]
[1641005981521,33.92179,172.62,172.53,1.21289723]
[1641005982322,12.34011166,172.61,172.53,19.54186745]
[1641005985828,12.34011166,172.58,172.53,1.21289723]
[1641005986328,12.34011166,172.59,172.53,1.21289723]
[1641005990127,29.9223,172.6,172.52,30.3726]
[1641005990830,12.34307745,172.59,172.53,1.21506799]
[1641005991828,12.34307745,172.59,172.52,30.3726]
[1641005992428,12.34307745,172.59,172.53,1.2150662]
[1641005993730,12.34307745,172.59,172.52,30.3726]
[1641005993933,29.9223,172.6,172.52,30.3726]
[1641005994629,24.49759754,172.6,172.52,30.3726]
[1641005995030,27.66479,172.59,172.52,30.3726]
[1641005997333,27.66479,172.62,172.53,5.20680582]
[1641005997532,27.66479,172.62,172.53,7.80680582]
[1641005998033,27.66479,172.62,172.54,1.20680582]
[1641005998635,30.2628,172.66,172.54,1.20680582]
[1641005999039,27.66479,172.64,172.55,27.66479]
[1641005999436,27.66479,172.64,172.56,32.5145]
[1641006003540,12.34307745,172.63,172.57,1.21481879]
[1641006003942,12.34307745,172.62,172.57,1.21481879]
[1641006008946,12.34307745,172.63,172.57,1.21481879]
[1641006009145,12.34307745,172.63,172.57,8.01781879]
[1641006010248,12.34307745,172.63,172.6,7.0]
[1641006011051,12.34307745,172.63,172.61,27.66479]
[1641006011245,10.47261673,172.65,172.61,34.60460879]
[1641006011447,45.24627462,172.67,172.61,34.60460879]
[1641006011448,12.34307745,172.67,172.61,34.60460879]
[1641006012548,12.34307745,172.68,172.62,1.21481879]
[1641006013948,12.34307745,172.68,172.64,4.11245568]
[1641006015649,12.34307745,172.66,172.62,5.32727447]
[1641006017153,40.00786745,172.66,172.62,5.32727447]
[1641006017553,12.34307745,172.65,172.61,4.11245568]
[1641006019257,40.00786745,172.66,172.59,31.948]
[1641006019558,40.00786745,172.66,172.56,12.91245568]
[1641006019761,29.7658,172.65,172.57,33.77855568]
[1641006022662,29.7658,172.65,172.57,29.6661]
[1641006023663,29.7658,172.65,172.59,4.11245568]
[1641006023664,12.34307745,172.63,172.59,4.11245568]
[1641006024562,12.34307745,172.64,172.6,4.11245568]
[1641006028067,12.34307745,172.63,172.6,4.11245568]
[1641006028668,12.34307745,172.63,172.59,4.11245568]
[1641006029767,4.11345696,172.6,172.59,4.11245568]
[1641006031473,12.34307745,172.63,172.59,4.11245568]
[1641006033370,12.34307745,172.63,172.59,8.82245568]
[1641006038674,12.34307745,172.63,172.6,4.11245568]
[1641006038875,12.34307745,172.64,172.6,5.32727652]
[1641006039675,40.00786745,172.64,172.6,5.32727652]
[1641006040978,12.34307745,172.64,172.6,4.11245568]
[1641006041178,12.34307745,172.64,172.6,8.62445568]
[1641006041678,40.00786745,172.64,172.6,8.62445568]
[1641006042881,12.34307745,172.64,172.6,8.62445568]
[1641006043581,40.00786745,172.67,172.62,4.11245568]
[1641006044081,12.34307745,172.66,172.62,4.11245568]
[1641006044783,12.34307745,172.66,172.61,35.00775568]
[1641006046185,12.34307745,172.65,172.61,30.8953]
[1641006048489,12.34307745,172.64,172.61,30.8953]
[1641006048895,12.34307745,172.64,172.6,8.62445568]
[1641006049089,12.34307745,172.65,172.61,4.11245568]
[1641006049889,12.34307745,172.65,172.62,4.11245568]
[1641006050989,12.34307745,172.66,172.62,4.11245568]
[1641006053995,40.00786745,172.67,172.63,4.11245568]
[1641006055297,12.34307745,172.66,172.62,4.11245568]
[1641006056200,27.66479,172.67,172.6,8.512]
[1641006056899,27.66479,172.67,172.62,4.11291517]
[1641006056900,12.33874552,172.66,172.62,4.11291517]
[1641006057299,12.33874552,172.66,172.6,8.512]
[1641006057899,12.33874552,172.66,172.62,4.11289042]
[1641006058702,12.33874552,172.66,172.6,8.512]
[1641006059202,40.00353552,172.67,172.6,12.61548672]
[1641006059403,12.33874552,172.67,172.6,12.61548672]
[1641006060403,12.33874552,172.67,172.6,8.61548672]
[1641006060604,12.33874552,172.67,172.6,4.512]
[1641006060804,12.33874552,172.67,172.59,57.79539]
[1641006061306,12.33874552,172.66,172.59,61.89893893]
[1641006061906,12.33874552,172.66,172.59,57.79539]
[1641006062704,10.44607917,172.67,172.59,57.79539]
[1641006062705,12.33874552,172.67,172.59,61.89889261]
[1641006062905,12.33874552,172.67,172.59,68.27089261]
[1641006063206,12.33874552,172.66,172.59,64.16739]
[1641006063908,12.33874552,172.66,172.59,68.2708944]
[1641006064411,12.33874552,172.66,172.59,64.16739]
[1641006065507,27.66479,172.68,172.59,68.27089434]
[1641006065508,12.33874552,172.67,172.59,68.27089434]
[1641006065908,12.33874552,172.66,172.59,64.16739]
[1641006066611,12.33874552,172.66,172.59,68.27089859]
[1641006067311,12.33874552,172.66,172.59,64.16739]
[1641006067811,12.33874552,172.66,172.59,68.27088501]
[1641006068412,12.33874552,172.66,172.59,64.16739]
[1641006069014,12.33874552,172.67,172.59,68.27088898]
[1641006069615,4.10349983,172.63,172.59,64.16739]
[1641006070314,12.33874552,172.67,172.59,68.27089165]
[1641006070814,4.10551541,172.62,172.6,5.31818402]
[1641006071615,12.33874552,172.66,172.59,64.16739]
[1641006071816,12.33874552,172.65,172.61,4.11224482]
[1641006072515,12.33874552,172.65,172.6,1.2146633]
[1641006073314,10.45126841,172.67,172.61,4.11219123]
[1641006073514,10.45126841,172.67,172.59,64.16739]
[1641006073715,10.45126841,172.67,172.62,7.0]
[1641006073716,12.33655061,172.65,172.62,7.0]
[1641006073914,12.33655061,172.65,172.62,4.0]
[1641006074114,12.33655061,172.65,172.62,7.0]
[1641006074516,12.33531756,172.67,172.63,5.32647593]
[1641006074715,12.33531756,172.67,172.63,10.84447593]
[1641006075216,10.45126841,172.69,172.63,5.518]
[1641006075415,12.33406585,172.68,172.64,5.32610041]
[1641006076216,31.8442,172.7,172.63,5.518]
[1641006076416,12.33413726,172.69,172.65,4.11137909]
[1641006077119,31.8442,172.7,172.64,1.21474211]
[1641006077718,12.33417094,172.69,172.65,4.11139031]
[1641006078320,31.8442,172.7,172.64,1.21474061]
[1641006078919,27.66479,172.68,172.64,1.21474061]
[1641006079119,27.66479,172.68,172.65,4.11146733]
[1641006079721,39.99919198,172.68,172.64,5.32633871]
[1641006080421,27.66479,172.68,172.63,29.9031]
[1641006081519,39.99963376,172.68,172.64,5.32644472]
[1641006082222,39.99963376,172.68,172.63,35.9131]
[1641006082820,27.66479,172.68,172.64,5.32641202]
[1641006083021,31.8442,172.7,172.64,5.32641202]
[1641006083421,31.8442,172.7,172.63,35.9131]
[1641006083621,12.33479818,172.68,172.63,35.9131]
[1641006084322,12.33479818,172.67,172.63,40.02468371]
[1641006085024,10.46607606,172.69,172.63,35.9131]
[1641006085525,10.46607606,172.69,172.63,40.02470273]
[1641006085724,12.33480818,172.67,172.63,40.02470273]
[1641006086325,10.46607606,172.69,172.63,35.9131]
[1641006086826,12.33467168,172.67,172.63,40.02465723]
[1641006087426,31.8442,172.7,172.63,35.9131]
[1641006087629,4.10364901,172.65,172.63,35.9131]
[1641006087828,4.10364901,172.65,172.63,6.01]
[1641006088029,4.10364901,172.65,172.62,47.52843901]
[1641006088432,12.31094703,172.69,172.62,43.42479]
[1641006088633,12.31094703,172.69,172.62,49.58779]
[1641006089236,4.10138365,172.65,172.62,49.58779]
[1641006089836,12.31094703,172.69,172.62,49.58779]
[1641006090438,4.10138031,172.65,172.62,49.58779]
[1641006091141,4.10137257,172.66,172.62,53.68916257]
[1641006091740,44.15514703,172.7,172.62,49.58779]
[1641006092342,44.15514703,172.7,172.62,21.923]
[1641006092542,4.10136328,172.66,172.62,26.02436328]
[1641006093144,27.66479,172.68,172.62,21.923]
[1641006093743,4.10137286,172.66,172.62,26.02437286]
[1641006094344,27.66479,172.68,172.62,21.923]
[1641006095349,4.1013749,172.66,172.62,26.0243749]
[1641006095846,44.15514703,172.7,172.62,21.923]
[1641006096547,44.15514703,172.7,172.62,26.02437786]
[1641006096845,4.10137786,172.66,172.62,26.02437786]
[1641006097246,44.15514703,172.7,172.62,21.923]
[1641006097847,27.66479,172.68,172.62,21.923]
[1641006098048,4.10138034,172.66,172.62,26.02438034]
[1641006098451,27.66479,172.68,172.62,21.923]
[1641006098652,27.66479,172.68,172.62,12.76]
[1641006099054,4.10137812,172.65,172.62,12.76]
[1641006099853,27.66479,172.68,172.62,12.76]
[1641006100356,4.101384,172.65,172.62,12.76]
[1641006101156,12.31094703,172.67,172.63,5.32723258]
[1641006101857,27.66479,172.68,172.62,12.76]
[1641006102163,12.33740864,172.66,172.62,16.87246955]
[1641006102760,10.46783126,172.67,172.62,12.76]
[1641006103262,12.33742762,172.66,172.62,16.87247587]
[1641006103762,10.46783126,172.67,172.62,12.76]
[1641006104562,12.33743934,172.66,172.62,16.87247978]
[1641006105463,10.46783126,172.67,172.62,12.76]
[1641006106063,27.66479,172.68,172.62,12.76]
[1641006106262,12.33743805,172.67,172.63,5.32739628]
[1641006106862,31.8442,172.7,172.62,12.76]
[1641006107561,31.8442,172.7,172.63,5.32215401]
[1641006107762,12.32529696,172.68,172.63,5.32215401]
[1641006108162,12.32529696,172.68,172.62,12.76]
[1641006108163,3.0,172.64,172.59,12.34593674]
[1641006108365,3.0,172.62,172.59,12.34593674]
[1641006108767,3.0,172.62,172.59,1.22974749]
[1641006108966,3.0,172.61,172.59,1.22974749]
[1641006109166,3.0,172.61,172.5,40.1315]
[1641006110169,27.66479,172.57,172.5,40.1315]
[1641006111672,22.68911519,172.57,172.5,40.1315]
[1641006113273,31.2077,172.58,172.5,40.1315]
[1641006114672,27.66479,172.57,172.5,40.1315]
[1641006118881,31.2077,172.58,172.5,40.1315]
[1641006119081,31.2077,172.58,172.5,44.7065]
[1641006120283,31.2077,172.58,172.51,4.0]
[1641006120483,31.2077,172.58,172.52,27.66479]
[1641006120683,27.66479,172.62,172.52,27.66479]
[1641006121084,27.66479,172.62,172.53,5.97855969]
[1641006121585,27.66479,172.62,172.54,31.1516]
[1641006121783,27.66479,172.62,172.54,37.7536]
[1641006128795,10.47784015,172.61,172.54,37.7536]
[1641006134310,10.47784015,172.61,172.56,4.0]
[1641006134909,10.47784015,172.61,172.58,27.66479]
[1641006135109,10.47784015,172.61,172.58,32.74779]
[1641006135611,10.47784015,172.63,172.58,32.74779]
[1641006136309,31.0823,172.64,172.58,32.74779]
[1641006139015,12.34029577,172.63,172.58,32.74779]
[1641006143921,12.34029577,172.62,172.58,32.74779]
[1641006144320,12.34029577,172.62,172.58,41.56779]
[1641006149029,12.34029577,172.62,172.59,1.21351932]
[1641006149227,12.34029577,172.64,172.59,1.21351932]
[1641006151330,12.34029577,172.65,172.59,1.21351932]
[1641006151731,12.34029577,172.65,172.59,28.87830932]
[1641006152131,10.47549442,172.66,172.59,28.87830932]
[1641006152132,12.34029577,172.64,172.59,28.87830932]
[1641006152737,12.34029577,172.64,172.6,1.21351932]
[1641006153937,12.34029577,172.64,172.59,28.87830932]
[1641006154441,12.34029577,172.64,172.6,1.21351932]
[1641006156844,12.34029577,172.64,172.59,28.87830932]
[1641006157447,10.47549442,172.66,172.59,27.66479]
[1641006157448,12.34029577,172.63,172.59,27.66479]
[1641006158749,12.34029577,172.63,172.58,41.3565]
[1641006159348,12.34029577,172.62,172.59,1.21347595]
[1641006162349,12.34029577,172.63,172.58,41.3565]
[1641006162949,12.34029577,172.63,172.59,1.21336027]
[1641006164753,40.00508577,172.63,172.59,1.21336027]
[1641006165152,12.34029577,172.61,172.57,1.21336027]
[1641006165754,12.34029577,172.6,172.56,40.24479]
[1641006166757,12.34029577,172.62,172.57,1.21331103]
[1641006168458,12.34029577,172.62,172.58,4.11361852]
[1641006169161,12.34029577,172.61,172.57,5.32692955]
[1641006170860,15.34029577,172.61,172.57,5.32692955]
[1641006171261,12.34029577,172.6,172.56,4.11361852]
[1641006171463,42.69519577,172.6,172.56,4.11361852]
[1641006171863,12.34029577,172.58,172.54,4.11361852]
[1641006172561,12.34029577,172.58,172.51,44.22639577]
[1641006172762,38.14191326,172.59,172.51,31.8861]
[1641006173263,27.66479,172.59,172.51,31.8861]
[1641006173464,12.34501286,172.58,172.54,4.11500429]
[1641006173664,12.34501286,172.58,172.54,9.36000429]
[1641006174064,12.34501286,172.57,172.54,5.245]
[1641006174366,16.61501286,172.57,172.53,4.11498351]
[1641006174764,27.66479,172.56,172.53,4.11498351]
[1641006174963,27.66479,172.56,172.52,4.11503069]
[1641006174964,40.00980286,172.56,172.52,4.11503069]
[1641006175965,40.00980286,172.56,172.48,12.34029577]
[1641006175966,12.34578363,172.55,172.51,4.11526121]
[1641006176768,27.66479,172.56,172.5,4.1155904]
[1641006176970,12.34677119,172.54,172.5,4.1155904]
[1641006177769,10.4832548,172.55,172.49,1.21326745]
[1641006179069,12.34720407,172.53,172.5,4.11573469]
[1641006179671,10.4832548,172.55,172.49,1.21325604]
[1641006180576,12.34708558,172.54,172.5,4.11569519]
[1641006180972,12.34708558,172.54,172.48,30.53]
[1641006181173,12.34708558,172.54,172.49,1.21327536]
[1641006181775,10.4832548,172.55,172.48,34.53]
[1641006181975,10.4832548,172.55,172.5,4.11558927]
[1641006182576,29.7632,172.56,172.51,4.11536032]
[1641006182776,40.01087096,172.55,172.51,4.11536032]
[1641006183376,27.66479,172.55,172.48,30.53]
[1641006184078,29.7632,172.56,172.48,34.53]
[1641006184277,33.84225435,172.56,172.48,27.94523379]
[1641006184678,29.7632,172.56,172.48,27.94523379]
[1641006184879,29.7632,172.56,172.5,27.66479]
[1641006185077,29.7632,172.56,172.5,33.72679]
[1641006185677,29.7632,172.56,172.5,6.062]
[1641006186079,33.84225435,172.56,172.5,6.062]
[1641006186278,33.84225435,172.56,172.46,40.28479]
[1641006186782,61.50704435,172.56,172.46,40.28479]
[1641006187784,61.50704435,172.56,172.47,29.4379]
[1641006189384,57.42799,172.56,172.47,29.4379]
[1641006189784,29.7632,172.56,172.47,29.4379]
[1641006191186,29.7632,172.56,172.47,57.10269]
[1641006191887,4.07905435,172.51,172.48,1.2136801]
[1641006197196,27.66479,172.52,172.48,1.2136801]
[1641006197197,4.07905435,172.49,172.48,1.2136801]
[1641006198593,27.66479,172.52,172.48,1.2136801]
[1641006198794,40.01087096,172.52,172.46,1.2136801]
[1641006199393,4.11542886,172.48,172.45,1.2136801]
[1641006201994,4.11542886,172.49,172.45,1.2136801]
[1641006203398,4.11542886,172.48,172.45,1.2136801]
[1641006203898,4.11542886,172.5,172.45,19.53334713]
[1641006207200,4.11542886,172.5,172.49,4.11533402]
[1641006207400,4.11542886,172.5,172.49,9.25633402]
[1641006208802,4.11542886,172.5,172.49,10.47001412]
[1641006209204,4.11542886,172.5,172.49,5.32901412]
[1641006209502,4.11542886,172.52,172.49,1.2136801]
[1641006210203,4.11542886,172.52,172.48,13.55397587]
[1641006210903,13.04642886,172.52,172.48,13.55397587]
[1641006211104,10.04642886,172.52,172.48,13.55397587]
[1641006211504,12.34608096,172.5,172.46,5.32945919]
[1641006212504,42.82568096,172.52,172.48,4.11577909]
[1641006212705,42.82568096,172.52,172.48,8.85177909]
[1641006213104,12.34608096,172.49,172.48,4.736]
[1641006213806,40.01087096,172.51,172.47,4.11577909]
[1641006215310,12.34608096,172.5,172.46,4.11577909]
[1641006216210,12.34608096,172.49,172.45,4.11577909]
[1641006217310,27.66479,172.51,172.43,27.66479]
[1641006217510,27.66479,172.51,172.44,4.0]
[1641006218112,27.66479,172.51,172.43,31.78056909]
[1641006218511,27.66479,172.51,172.44,4.11577909]
[1641006219212,27.66479,172.51,172.46,4.11577909]
[1641006220015,27.66479,172.51,172.44,5.32387519]
[1641006220919,27.66479,172.51,172.45,4.11577909]
[1641006221819,27.66479,172.51,172.44,4.11577909]
[1641006222620,27.66479,172.51,172.45,4.11577909]
[1641006223522,27.66479,172.51,172.44,4.11577909]
[1641006224322,40.01087096,172.51,172.47,4.11577909]
[1641006225425,27.66479,172.51,172.49,4.11577909]
[1641006226829,40.01087096,172.51,172.47,4.11577909]
[1641006228835,27.66479,172.51,172.48,4.11577909]
[1641006229533,27.66479,172.51,172.47,4.11577909]
[1641006229737,40.01087096,172.51,172.47,4.11577909]
[1641006230840,40.01087096,172.51,172.46,4.11577909]
[1641006230841,12.34608096,172.5,172.46,4.11577909]
[1641006231243,3.0,172.48,172.46,4.11577909]
[1641006231438,3.0,172.49,172.46,4.11577909]
[1641006231641,27.66479,172.47,172.46,4.11577909]
[1641006232440,40.01087096,172.47,172.43,4.11577909]
[1641006236945,12.34608096,172.46,172.43,4.11577909]
[1641006237544,40.01087096,172.47,172.43,4.11577909]
[1641006238444,12.34608096,172.46,172.42,4.11577909]
[1641006239046,40.01087096,172.47,172.43,4.11577909]
[1641006240648,12.34608096,172.46,172.42,5.32387519]
[1641006241246,12.34608096,172.46,172.42,4.11577909]
[1641006241449,27.66479,172.47,172.4,27.66479]
[1641006242252,27.66479,172.47,172.4,31.78056909]
[1641006243653,27.66479,172.47,172.4,27.66479]
[1641006244655,27.66479,172.47,172.4,31.78056909]
[1641006244656,4.09986024,172.46,172.4,31.78056909]
[1641006245354,27.66479,172.47,172.4,31.78056909]
[1641006245956,4.09992754,172.46,172.4,31.78056909]
[1641006246655,27.66479,172.47,172.4,31.78056909]
[1641006247360,40.01087096,172.47,172.43,4.11577909]
[1641006247858,40.01087096,172.47,172.43,9.54377909]
[1641006248060,27.66479,172.47,172.45,4.11701706]
[1641006248457,12.34608096,172.49,172.45,4.11701706]
[1641006248858,40.01427988,172.51,172.44,13.55388414]
[1641006249664,40.01427988,172.51,172.43,5.428]
[1641006249861,12.34948988,172.5,172.47,4.11644438]
[1641006250059,12.34948988,172.5,172.47,9.94544438]
[1641006250559,12.34948988,172.5,172.47,5.829]
[1641006250760,27.66479,172.51,172.47,5.829]
[1641006251460,40.01403055,172.51,172.47,9.94541352]
[1641006251860,12.34924055,172.51,172.47,9.94541352]
[1641006252062,12.34924055,172.51,172.47,5.829]
[1641006252861,12.34924055,172.51,172.47,9.94522627]
[1641006253566,10.48444647,172.52,172.47,5.829]
[1641006254369,10.48444647,172.52,172.47,9.9451812]
[1641006254370,12.34854359,172.51,172.47,9.9451812]
[1641006254971,10.48444647,172.52,172.47,5.829]
[1641006255171,10.48444647,172.52,172.45,27.66479]
[1641006255369,10.48444647,172.52,172.44,30.4927]
[1641006255770,12.34857568,172.51,172.47,4.11619189]
[1641006256371,10.48444647,172.52,172.44,30.4927]
[1641006256572,12.35035603,172.5,172.46,4.11678534]
[1641006257172,10.48444647,172.52,172.44,30.4927]
[1641006257374,10.48444647,172.52,172.44,37.1517]
[1641006257872,27.66479,172.5,172.44,37.1517]
[1641006258075,40.01493134,172.5,172.46,4.11671378]
[1641006258873,27.66479,172.5,172.44,37.1517]
[1641006259473,40.01486126,172.5,172.47,4.11669042]
[1641006260077,27.66479,172.5,172.47,4.11669042]
[1641006260278,27.66479,172.5,172.44,37.1517]
[1641006260978,40.01488658,172.5,172.47,4.11669886]
[1641006261577,27.66479,172.5,172.46,4.11671586]